[Event "DFMMLV 2024"]
[Site "Braunfels"]
[Date "2024.06.01"]
[Round "4.19"]
[White "Braeutigam, Katerina"]
[Black "Frank, Michelle Viviane"]
[Result "1-0"]
[ECO "C02"]
[WhiteElo "1988"]
[BlackElo "1899"]
[Annotator "RC"]
[PlyCount "84"]
[EventDate "2024.05.30"]
[EventType "team-tourn"]
[EventCountry "GER"]
[SourceTitle "playchess.com"]
[Source "ChessBase"]
[SourceQuality "1"]
[TimeControl "40/5400+30:1800+30"]

1. e4 {[%emt 0:00:05]} e6 {[%emt 0:00:00]} 2. d4 {[%emt 0:00:04]} d5 {[%emt 0:00:00]} 3. e5 {[%emt 0:00:04]} b6 {[%emt 0:00:00]} 4. c3 {[%emt 0:00:30]} Qd7 {[%emt 0:00:00]} 5. a4 {[%emt 0:11:55]} a5 {[%emt 0:00:06]} 6. f4 {[%emt 0:07:21]} Ne7 {[%emt 0:01:02]} 7. Nf3 {[%emt 0:01:41]} h5 {[%emt 0:00:07]} 8. b4 {[%emt 0:08:49]} axb4 {[%emt 0:01:18]} 9. cxb4 {[%emt 0:00:13]} Nf5 {[%emt 0:00:19]} 10. Bd2 {[%emt 0:05:31]} Be7 {[%emt 0:00:25]} 11. Bd3 {[%emt 0:06:19]} g6 {[%emt 0:05:25]} 12. Qc2 {[%emt 0:02:41]} O-O {[%emt 0:00:37]} 13. Kf2 {[%emt 0:10:15]} Na6 {[%emt 0:01:52]} 14. b5 {[%emt 0:10:34]} Nb4 {[%emt 0:00:19]} 15. Bxb4 {[%emt 0:01:14]} Bxb4 {[%emt 0:00:05]} 16. Rc1 {[%emt 0:01:30]} Ra7 {[%emt 0:00:04]} 17. g3 {[%emt 0:04:00]} Qe7 {[%emt 0:00:22]} 18. Ra2 {[%emt 0:04:35]} Bd7 {[%emt 0:00:17]} 19. Qb3 {[%emt 0:03:08]} Rc8 {[%emt 0:01:49]} 20. Rac2 {[%emt 0:01:15]} Ba5 {[%emt 0:00:08]} 21. Bxf5 {[%emt 0:05:07]} exf5 {[%emt 0:00:39]} 22. Qxd5 {[%emt 0:02:17]} Be6 {[%emt 0:00:10]} 23. Qc6 {[%emt 0:00:46]} Rd8 {[%emt 0:04:22]} 24. Nc3 {[%emt 0:04:07]} Bxc3 {[%emt 0:00:21]} 25. Qxc3 {[%emt 0:06:49]} Rda8 {[%emt 0:00:29]} 26. Qd3 {[%emt 0:01:24]} Bd5 {[%emt 0:00:08]} 27. Nd2 {[%emt 0:01:12]} Qd7 {[%emt 0:00:31]} 28. Rc3 {[%emt 0:00:28]} Rd8 {[%emt 0:00:14]} 29. Qc2 {[%emt 0:00:31]} Ba8 {[%emt 0:00:14]} 30. Rd3 {[%emt 0:00:30]} Qd5 {[%emt 0:00:12]} 31. Nf3 {[%emt 0:00:21]} Rd7 {[%emt 0:01:59]} 32. Qc4 {[%emt 0:00:35]} Qxc4 {[%emt 0:02:21]} 33. Rxc4 {[%emt 0:00:01]} Bd5 {[%emt 0:00:19]} 34. Rb4 {[%emt 0:00:06]} Ra8 {[%emt 0:01:11]} 35. Nd2 {[%emt 0:01:06]} Kg7 {[%emt 0:00:25]} 36. Ke3 {[%emt 0:00:50]} Rc8 {[%emt 0:01:33]} 37. Nb1 {[%emt 0:00:29]} h4 {[%emt 0:02:50]} 38. Nc3 {[%emt 0:00:21]} Bb7 {[%emt 0:00:11]} 39. d5 {[%emt 0:00:35]} hxg3 {[%emt 0:00:05]} 40. hxg3 {[%emt 0:00:06]} Rh8 {[%emt 0:00:40]} 41. Rbd4 {[%emt 0:08:36]} Rh1 {[%emt 0:02:45]} 42. d6 {[%emt 0:08:17]} Kf8 {[%emt 1:45:36]} 1-0

[Event "DFMMLV 2024"]
[Site "Braunfels"]
[Date "2024.06.01"]
[Round "4.21"]
[White "Mundt, Alexandra"]
[Black "Blaschke, Franziska"]
[Result "1-0"]
[ECO "A07"]
[WhiteElo "1874"]
[BlackElo "1915"]
[Annotator "NA RC"]
[PlyCount "113"]
[EventDate "2024.05.30"]
[EventType "team-tourn"]
[EventCountry "GER"]
[SourceTitle "playchess.com"]
[Source "ChessBase"]
[SourceQuality "1"]
[TimeControl "40/5400+30:1800+30"]

1. Nf3 {[%emt 0:00:02]} Nf6 {[%emt 0:00:27]} 2. g3 {[%emt 0:00:04]} e6 {[%emt 0:01:07]} 3. Bg2 {[%emt 0:00:08]} d5 {[%emt 0:00:53]} 4. O-O {[%emt 0:00:18]} Be7 {[%emt 0:01:05]} 5. d3 {[%emt 0:00:15]} Nc6 {[%emt 0:00:54]} 6. Nbd2 {[%emt 0:00:21]} O-O {[%emt 0:00:26]} 7. e4 {[%emt 0:00:44]} dxe4 {[%emt 0:00:19]} 8. dxe4 {[%emt 0:00:19]} e5 {[%emt 0:00:42]} 9. Qe2 {[%emt 0:03:09]} Bg4 {[%emt 0:01:59]} 10. c3 {[%emt 0:00:47]} Re8 {[%emt 0:03:44] A07: Réti Opening: New York and Capablanca Systems.} 11. h3 {[%emt 0:01:18]} Be6 {[%emt 0:01:05]} 12. Nc4 {[%emt 0:13:17]} Bxc4 {[%emt 0:03:55]} 13. Qxc4 {[%emt 0:00:04]} Bd6 {[%emt 0:00:32]} 14. Nh4 {[%emt 0:03:17]} Qe7 {[%emt 0:02:27]} 15. Nf5 {[%emt 0:01:23]} Qe6 {[%emt 0:00:19]} 16. Qe2 {[%emt 0:00:39]} a5 {[%emt 0:09:22]} 17. h4 {[%emt 0:01:53]} g6 {[%emt 0:01:45]} 18. Nh6+ {[%emt 0:00:12]} Kg7 {[%emt 0:03:00]} 19. Kh2 {[%emt 0:00:30]} Bf8 {[%emt 0:06:04]} (19... Ng8 $16 {was worth a try.}) 20. Bh3 {[%emt 0:00:44]} Qe7 {[%emt 0:02:31]} 21. Bg5 {[%emt 0:17:11]} Rad8 {[%emt 0:03:35]} 22. Qc4 {[%emt 0:23:31]} Nb8 {[%emt 0:03:24]} 23. Kg2 {[%emt 0:00:58]} Rd6 {[%emt 0:02:02]} 24. a4 {[%emt 0:04:40]} Rc6 {[%emt 0:03:17]} 25. Qa2 {[%emt 0:00:56]} Rd8 {[%emt 0:03:58]} 26. h5 {[%emt 0:10:24]} Nbd7 {[%emt 0:02:18]} 27. hxg6 {[%emt 0:03:17]} hxg6 {[%emt 0:02:37]} 28. Bxd7 {[%emt 0:05:18]} Rxd7 {[%emt 0:00:42]} 29. Ng4 {[%emt 0:00:09]} Qc5 {[%emt 0:03:41]} 30. Bxf6+ {[%emt 0:01:26]} Rxf6 {[%emt 0:00:12]} 31. Nxf6 {[%emt 0:00:01]} Kxf6 {[%emt 0:00:10]} 32. Rad1 {[%emt 0:01:10]} Rxd1 {[%emt 0:02:38]} 33. Rxd1 {[%emt 0:00:01]} Bd6 {[%emt 0:02:13]} 34. Rd3 $18 {[%emt 0:01:51]} Kg7 {[%emt 0:02:11]} 35. Rf3 {[%emt 0:01:46]} f6 {[%emt 0:01:08]} 36. Qe6 {[%emt 0:00:21]} Be7 {[%emt 0:00:13]} 37. Rd3 {[%emt 0:01:33]} Bd6 {[%emt 0:02:49]} 38. Qd7+ {[%emt 0:00:17]} Kf8 {[%emt 0:00:49]} 39. Qd8+ {[%emt 0:01:31]} Kg7 {[%emt 0:02:16]} 40. Qd7+ {[%emt 0:00:19]} Kf8 {[%emt 0:00:42]} 41. Rf3 {[%emt 0:33:29]} Be7 {[%emt 0:30:20]} 42. Qc8+ {[%emt 0:00:07]} Kg7 {[%emt 0:00:28]} 43. Qxb7 {[%emt 0:00:10]} Qb6 {[%emt 0:01:55]} 44. Qxb6 {[%emt 0:00:36]} cxb6 {[%emt 0:00:05]} 45. Rd3 {[%emt 0:00:05]} Bc5 {[%emt 0:00:19]} 46. Rd7+ {[%emt 0:01:10]} Kf8 {[%emt 0:00:05]} 47. f4 {[%emt 0:00:27]} exf4 {[%emt 0:00:13]} 48. gxf4 {[%emt 0:00:04]} Be7 {[%emt 0:02:58]} 49. Rb7 {[%emt 0:00:40]} Bd8 {[%emt 0:00:37]} 50. b4 {[%emt 0:00:28]} axb4 {[%emt 0:01:43]} 51. cxb4 {[%emt 0:00:02]} Ke8 {[%emt 0:00:15]} 52. Kf3 {[%emt 0:01:00]} Kf8 {[%emt 0:01:43]} 53. Ra7 {[%emt 0:00:00]} Be7 {[%emt 0:00:00]} 54. a5 {[%emt 0:00:00]} Bxb4 {[%emt 0:00:00]} 55. axb6 {[%emt 0:00:00]} Bc5 {[%emt 0:00:00]} 56. Ra8+ {[%emt 0:00:00]} Ke7 {[%emt 0:00:00]} 57. b7 {[%emt 0:00:00]} 1-0

[Event "DFMMLV 2024"]
[Site "Braunfels"]
[Date "2024.06.01"]
[Round "4.22"]
[White "Pralle, Katharina"]
[Black "Rosmait, Emily"]
[Result "0-1"]
[ECO "A47"]
[WhiteElo "1960"]
[BlackElo "1896"]
[Annotator "NA RC"]
[PlyCount "98"]
[EventDate "2024.05.30"]
[EventType "team-tourn"]
[EventCountry "GER"]
[SourceTitle "playchess.com"]
[Source "ChessBase"]
[SourceQuality "1"]
[TimeControl "40/5400+30:1800+30"]

1. d4 {[%emt 0:00:03]} Nf6 {[%emt 0:00:04]} 2. Nf3 {[%emt 0:00:04]} e6 {[%emt 0:00:07]} 3. Bf4 {[%emt 0:00:32]} b6 {[%emt 0:00:44]} 4. e3 {[%emt 0:00:55]} Bb7 {[%emt 0:00:32]} 5. Nbd2 {[%emt 0:00:59]} Be7 {[%emt 0:02:07]} 6. Be2 {[%emt 0:00:20] A47: 1 d4 Nf6 2 Nf3 b6: Torre, London and Colle Systems.} O-O {[%emt 0:01:48]} 7. O-O {[%emt 0:01:10]} d6 {[%emt 0:00:54]} 8. c3 {[%emt 0:01:19]} Nbd7 {[%emt 0:06:45]} 9. Qc2 {[%emt 0:00:59]} c5 {[%emt 0:05:30]} 10. Rad1 {[%emt 0:11:15]} Rc8 {[%emt 0:03:32]} 11. Bg3 {[%emt 0:06:55]} cxd4 {[%emt 0:17:35]} 12. exd4 {[%emt 0:02:56]} a6 {[%emt 0:02:44]} 13. a4 {[%emt 0:02:27]} Nh5 {[%emt 0:10:52]} 14. Bd3 {[%emt 0:05:54]} g6 {[%emt 0:03:01]} 15. Rde1 {[%emt 0:03:05]} Nxg3 {[%emt 0:03:40]} 16. hxg3 {[%emt 0:00:52]} Nf6 {[%emt 0:05:47]} 17. Ng5 {[%emt 0:13:49]} (17. Ra1 $11) 17... Nh5 {[%emt 0:07:45]} 18. Nh3 {[%emt 0:03:50]} Ng7 {[%emt 0:02:24]} 19. Nf3 {[%emt 0:08:42]} Qd7 {[%emt 0:01:37]} 20. Kh2 {[%emt 0:06:19]} b5 {[%emt 0:03:07]} 21. axb5 {[%emt 0:03:32]} axb5 {[%emt 0:00:01]} 22. Qe2 {[%emt 0:02:38] [#]} b4 $1 {[%emt 0:03:38]} 23. c4 {[%emt 0:12:03]} Bf6 {[%emt 0:00:23]} 24. Qd2 {[%emt 0:01:01]} Nf5 {[%emt 0:03:25]} ({Better is} 24... b3 $17 25. Re3 Bxf3 26. Rxf3 Ne8 (26... Bxd4 27. Ra1 $17)) 25. Bxf5 {[%emt 0:01:10]} exf5 {[%emt 0:00:01]} 26. b3 {[%emt 0:02:58]} Rfe8 {[%emt 0:04:02]} 27. Nhg1 $11 {[%emt 0:01:31]} Re4 {[%emt 0:01:45]} 28. Qxb4 {[%emt 0:02:01]} Rce8 {[%emt 0:00:07]} 29. d5 {[%emt 0:01:05]} Bc8 {[%emt 0:05:16]} 30. Qd2 {[%emt 0:01:26]} f4 {[%emt 0:01:03]} 31. gxf4 {[%emt 0:01:04]} Qg4 {[%emt 0:01:04]} 32. Nh3 {[%emt 0:00:23]} Qh5 {[%emt 0:01:05]} 33. Qd3 {[%emt 0:01:12]} Bf5 {[%emt 0:01:12]} 34. Rxe4 {[%emt 0:00:31]} Rxe4 {[%emt 0:01:02]} 35. Qd1 {[%emt 0:01:03]} Rxf4 {[%emt 0:01:17]} 36. Nfg1 {[%emt 0:01:13]} Bg4 {[%emt 0:01:31]} 37. f3 {[%emt 0:00:53]} Bd7 {[%emt 0:00:43]} 38. Qe1 {[%emt 0:00:16]} Be5 {[%emt 0:00:18]} 39. Kh1 {[%emt 0:00:06]} Rh4 {[%emt 0:00:33]} 40. Qf2 {[%emt 0:00:53]} Bd4 {[%emt 0:00:27]} 41. Qd2 {[%emt 0:08:40]} Bc5 {[%emt 0:10:22]} 42. Ra1 {[%emt 0:05:38]} Qe5 {[%emt 0:03:29]} 43. Ra8+ {[%emt 0:02:48]} Kg7 {[%emt 0:00:02]} 44. f4 {[%emt 0:01:01]} Qe4 {[%emt 0:02:25]} 45. Qc3+ {[%emt 0:09:01]} Bd4 {[%emt 0:01:35]} 46. Qg3 {[%emt 0:00:03]} Bxh3 {[%emt 0:06:57]} 47. Kh2 {[%emt 0:02:58]} Qxg2+ {[%emt 0:06:08]} 48. Qxg2 {[%emt 0:00:19]} Bxg2+ {[%emt 0:00:38]} 49. Kxg2 {[%emt 0:00:11]} Rg4+ {[%emt 0:00:12]} 0-1

[Event "DFMMLV 2024"]
[Site "Braunfels"]
[Date "2024.06.01"]
[Round "4.24"]
[White "Krausse, Vanessa"]
[Black "Leib, Britta"]
[Result "0-1"]
[ECO "C01"]
[WhiteElo "1753"]
[BlackElo "1920"]
[Annotator "NA RC"]
[PlyCount "82"]
[EventDate "2024.05.30"]
[EventType "team-tourn"]
[EventCountry "GER"]
[SourceTitle "playchess.com"]
[Source "ChessBase"]
[SourceQuality "1"]
[TimeControl "40/5400+30:1800+30"]

1. e4 {[%emt 0:00:06]} e6 {[%emt 0:00:10]} 2. d4 {[%emt 0:00:13]} d5 {[%emt 0:00:03]} 3. exd5 {[%emt 0:01:13]} exd5 {[%emt 0:00:06]} 4. Nf3 {[%emt 0:00:44]} Nf6 {[%emt 0:01:23]} 5. Be2 {[%emt 0:03:40]} Bd6 {[%emt 0:05:22]} 6. O-O {[%emt 0:02:04]} O-O {[%emt 0:02:48]} 7. Nc3 {[%emt 0:00:54]} c6 {[%emt 0:01:28] C01: French: Exchange Variation.} 8. Re1 {[%emt 0:02:35]} Nbd7 {[%emt 0:01:33]} 9. Bd3 {[%emt 0:04:35]} Qc7 {[%emt 0:06:29]} 10. Ne2 {[%emt 0:04:52]} Ne4 {[%emt 0:24:28]} 11. Ng3 {[%emt 0:07:48]} Nxg3 {[%emt 0:03:47]} 12. fxg3 {[%emt 0:00:38]} h6 {[%emt 0:01:34]} 13. Be3 {[%emt 0:03:24]} ({Better is} 13. Bd2 $1) 13... Nf6 {[%emt 0:01:09]} 14. Ne5 {[%emt 0:04:15]} Bxe5 {[%emt 0:25:51]} 15. dxe5 {[%emt 0:10:42]} Ng4 {[%emt 0:00:08]} 16. Bc5 {[%emt 0:04:22]} Re8 {[%emt 0:00:53]} 17. e6 {[%emt 0:03:51]} Rxe6 {[%emt 0:03:35]} 18. Rf1 {[%emt 0:04:51]} Ne3 {[%emt 0:01:55]} 19. Bxe3 {[%emt 0:01:15]} Rxe3 {[%emt 0:00:03]} 20. Rf3 {[%emt 0:04:38]} Re7 {[%emt 0:01:30]} 21. Qd2 {[%emt 0:07:17]} (21. Rf2 $17 {was worth a try.}) 21... Qb6+ {[%emt 0:01:25]} 22. Qf2 {[%emt 0:01:48]} Qxb2 {[%emt 0:02:32]} 23. Rf1 {[%emt 0:02:08]} Qb6 {[%emt 0:00:24]} ({Not} 23... Qxa2 24. Rxf7) 24. Kh1 {[%emt 0:01:38]} Qxf2 {[%emt 0:00:09]} 25. R3xf2 {[%emt 0:00:21]} Bd7 {[%emt 0:02:48]} 26. c4 {[%emt 0:03:01]} Rae8 {[%emt 0:01:19]} 27. cxd5 {[%emt 0:01:38]} cxd5 {[%emt 0:00:08]} 28. h3 {[%emt 0:02:01]} Rc8 {[%emt 0:02:03]} 29. Kh2 $19 {[%emt 0:06:10]} Rc3 {[%emt 0:01:43]} 30. Be2 {[%emt 0:03:23]} Be6 {[%emt 0:01:51]} 31. Rf3 {[%emt 0:01:28]} Rxf3 {[%emt 0:00:35]} 32. Bxf3 {[%emt 0:00:12]} Rc7 {[%emt 0:00:40]} 33. Rb1 {[%emt 0:00:44]} b6 {[%emt 0:00:12]} 34. Kg1 {[%emt 0:09:01]} Kf8 {[%emt 0:00:13]} 35. Kf1 {[%emt 0:00:00]} Rc2 {[%emt 0:00:52]} 36. Ra1 {[%emt 0:00:00]} Ke7 {[%emt 0:00:49]} 37. Ke1 {[%emt 0:00:00]} Kd6 {[%emt 0:00:14]} 38. a3 {[%emt 0:00:00]} Kc5 {[%emt 0:00:41]} 39. Kd1 {[%emt 0:00:00]} Rc3 {[%emt 0:00:36]} 40. Kd2 {[%emt 0:00:00]} d4 {[%emt 0:01:00]} 41. Ra2 {[%emt 0:07:21]} Bxa2 {[%emt 0:00:30]} 0-1

[Event "DFMMLV 2024"]
[Site "Braunfels"]
[Date "2024.06.01"]
[Round "4.25"]
[White "Rath, Alina"]
[Black "Rogozenco, Teodora"]
[Result "0-1"]
[ECO "A11"]
[WhiteElo "2041"]
[BlackElo "1993"]
[Annotator "NA RC"]
[PlyCount "78"]
[EventDate "2024.05.30"]
[EventType "team-tourn"]
[EventCountry "GER"]
[SourceTitle "playchess.com"]
[Source "ChessBase"]
[SourceQuality "1"]
[TimeControl "40/5400+30:1800+30"]

1. c4 {[%emt 0:00:03]} c6 {[%emt 0:00:07]} 2. b3 {[%emt 0:03:39]} d5 {[%emt 0:02:16]} 3. Bb2 {[%emt 0:00:16]} Nf6 {[%emt 0:04:37]} 4. e3 {[%emt 0:01:51]} Bf5 {[%emt 0:14:50]} 5. d4 {[%emt 0:05:19]} Bxb1 {[%emt 0:00:54]} 6. Qxb1 {[%emt 0:03:08] A11: English Opening: 1...c6.} Qa5+ {[%emt 0:00:11]} 7. Ke2 {[%emt 0:00:36]} Nbd7 {[%emt 0:09:19]} 8. f3 {[%emt 0:06:34]} dxc4 {[%emt 0:06:34]} 9. bxc4 {[%emt 0:00:17]} e5 {[%emt 0:00:04]} 10. Kf2 {[%emt 0:02:23]} Bd6 {[%emt 0:13:48]} 11. Bd3 {[%emt 0:05:15]} exd4 {[%emt 0:00:13]} 12. Bxd4 {[%emt 0:01:53]} O-O {[%emt 0:16:55]} 13. Ne2 {[%emt 0:02:45]} b6 {[%emt 0:01:22]} 14. Qe1 {[%emt 0:06:47]} (14. Bc3 $11 Qc5 15. Bd4) 14... Ne5 {[%emt 0:01:51]} 15. Qb1 {[%emt 0:04:00]} Qd2 {[%emt 0:02:30]} 16. Rd1 {[%emt 0:01:29]} Nxd3+ {[%emt 0:04:04]} 17. Qxd3 {[%emt 0:01:51]} Qxd3 {[%emt 0:00:05]} 18. Rxd3 {[%emt 0:00:05]} Be7 {[%emt 0:00:55]} 19. Rad1 {[%emt 0:01:33]} Rfd8 {[%emt 0:00:32]} 20. h3 {[%emt 0:02:08]} b5 {[%emt 0:03:53]} 21. cxb5 {[%emt 0:02:21]} cxb5 {[%emt 0:00:05]} 22. e4 {[%emt 0:03:24]} Rdc8 {[%emt 0:00:14]} 23. R1d2 {[%emt 0:02:11]} a5 {[%emt 0:00:54]} 24. Bb2 {[%emt 0:04:35]} a4 {[%emt 0:03:38]} 25. e5 {[%emt 0:00:56]} Ne8 {[%emt 0:00:34]} 26. Rd7 {[%emt 0:02:45]} (26. f4 $11) 26... Bb4 {[%emt 0:01:22]} 27. R2d5 {[%emt 0:03:46] [#]} ({White should try} 27. Rd1 $15) 27... Nc7 $1 {[%emt 0:00:49]} 28. Rd1 $1 {[%emt 0:01:16]} Ne6 {[%emt 0:01:37]} 29. a3 {[%emt 0:00:50]} (29. f4 $15) 29... Rc2 {[%emt 0:00:40]} 30. Bc1 {[%emt 0:00:34]} Bc5+ {[%emt 0:02:46]} 31. Kf1 {[%emt 0:00:37]} b4 {[%emt 0:02:22]} 32. axb4 {[%emt 0:01:36]} Bxb4 {[%emt 0:00:48]} 33. Nd4 {[%emt 0:02:30]} Nxd4 {[%emt 0:01:18]} 34. R7xd4 {[%emt 0:00:06]} Be7 {[%emt 0:00:21]} 35. R4d2 {[%emt 0:02:04] [#]} Rac8 $1 {[%emt 0:00:05]} 36. Bb2 {[%emt 0:00:45]} a3 {[%emt 0:00:59]} 37. Bd4 {[%emt 0:00:12]} a2 $19 {[%emt 0:00:39]} 38. Kf2 {[%emt 0:06:03]} Rxd2+ {[%emt 0:01:41]} 39. Rxd2 {[%emt 0:00:10]} Bc5 {[%emt 0:00:03]} 0-1

[Event "DFMMLV 2024"]
[Site "Braunfels"]
[Date "2024.06.01"]
[Round "4.26"]
[White "Brandt, Carina"]
[Black "Von Herman, Brigitte"]
[Result "1-0"]
[ECO "C56"]
[WhiteElo "2038"]
[BlackElo "1922"]
[Annotator "NA RC"]
[PlyCount "65"]
[EventDate "2024.05.30"]
[EventType "team-tourn"]
[EventCountry "GER"]
[SourceTitle "playchess.com"]
[Source "ChessBase"]
[SourceQuality "1"]
[TimeControl "40/5400+30:1800+30"]

1. e4 {[%emt 0:00:03]} e5 {[%emt 0:00:05]} 2. Nf3 {[%emt 0:00:04]} Nc6 {[%emt 0:00:04]} 3. Bc4 {[%emt 0:00:04]} Nf6 {[%emt 0:00:05]} 4. d4 {[%emt 0:00:07]} exd4 {[%emt 0:00:07]} 5. e5 {[%emt 0:00:04]} d5 {[%emt 0:00:07]} 6. Bb5 {[%emt 0:00:04]} Nd7 {[%emt 0:00:13]} 7. O-O {[%emt 0:01:13]} Be7 {[%emt 0:00:12]} 8. Bxc6 {[%emt 0:00:44]} bxc6 {[%emt 0:00:06]} 9. Nxd4 {[%emt 0:00:43] C56: Two Knights: 4 d4 exd4 5 0-0 Nxe4.} Nb8 {[%emt 0:00:07]} 10. c4 {[%emt 0:01:49]} O-O {[%emt 0:03:20]} 11. Qf3 {[%emt 0:03:36]} dxc4 {[%emt 0:12:32]} 12. Rd1 {[%emt 0:11:05]} Qd5 {[%emt 0:06:18]} 13. Qg3 {[%emt 0:02:28]} Qe4 {[%emt 0:06:44]} 14. Nc3 {[%emt 0:01:19]} Qg4 {[%emt 0:03:58]} 15. Bf4 {[%emt 0:08:05]} a5 {[%emt 0:08:34]} (15... Bc5 $142) 16. Qe3 {[%emt 0:05:48]} Bb7 {[%emt 0:07:29]} (16... Na6 $1 $15) 17. f3 {[%emt 0:02:43]} Qg6 {[%emt 0:02:21]} 18. g4 {[%emt 0:07:21]} Na6 {[%emt 0:13:32]} 19. Ne4 {[%emt 0:08:54]} f5 {[%emt 0:05:28]} 20. exf6 {[%emt 0:02:59]} Bxf6 {[%emt 0:01:01]} 21. Nf5 {[%emt 0:05:22]} Rae8 {[%emt 0:13:28]} 22. Rd7 $2 {[%emt 0:10:05]} (22. Nxf6+ $11 Qxf6 (22... Rxf6 $2 {too greedy.} 23. Ne7+ Rxe7 24. Qxe7 $18) 23. Bg5) 22... Bxb2 {[%emt 0:01:27]} 23. Rb1 {[%emt 0:13:16]} Bc8 $11 {[%emt 0:10:17]} ({Better is} 23... Rxf5 $19 24. Rxb2 Bc8) 24. Ne7+ {[%emt 0:01:55]} Rxe7 {[%emt 0:00:06]} 25. Rxe7 {[%emt 0:00:03]} c3 {[%emt 0:01:26]} 26. Bg3 {[%emt 0:05:32]} Ba3 {[%emt 0:00:50]} 27. Re5 {[%emt 0:00:29]} c2 {[%emt 0:00:34]} 28. Qb3+ {[%emt 0:01:16]} Qf7 {[%emt 0:01:45]} 29. Qxc2 {[%emt 0:00:08]} Bd6 {[%emt 0:01:14]} 30. Ng5 {[%emt 0:02:32]} Qg6 {[%emt 0:00:32]} 31. Qxg6 {[%emt 0:00:05]} hxg6 {[%emt 0:00:04]} 32. Rxa5 {[%emt 0:00:17]} Nc5 {[%emt 0:00:20]} 33. Ra8 {[%emt 0:01:32]} 1-0

[Event "DFMMLV 2024"]
[Site "Braunfels"]
[Date "2024.06.01"]
[Round "4.27"]
[White "Skogvall, Martina"]
[Black "Meyer, Bettina"]
[Result "1-0"]
[ECO "C02"]
[WhiteElo "1952"]
[BlackElo "1981"]
[Annotator "NA RC"]
[PlyCount "77"]
[EventDate "2024.05.30"]
[EventType "team-tourn"]
[EventCountry "GER"]
[SourceTitle "playchess.com"]
[Source "ChessBase"]
[SourceQuality "1"]
[TimeControl "40/5400+30:1800+30"]

1. e4 {[%emt 0:00:00]} e6 {[%emt 0:00:07]} 2. d4 {[%emt 0:00:04]} d5 {[%emt 0:00:05]} 3. e5 {[%emt 0:00:06]} c5 {[%emt 0:00:19]} 4. c3 {[%emt 0:00:11]} Nc6 {[%emt 0:00:28]} 5. Nf3 {[%emt 0:00:31]} Qb6 {[%emt 0:02:46]} 6. Bd3 {[%emt 0:01:13]} Bd7 {[%emt 0:04:28]} 7. dxc5 {[%emt 0:08:20]} Bxc5 {[%emt 0:01:43]} 8. O-O {[%emt 0:00:12]} Qc7 {[%emt 0:02:09]} 9. Re1 {[%emt 0:01:04] C02: French: Advance Variation.} Nge7 {[%emt 0:04:29]} 10. b4 {[%emt 0:06:05]} Bb6 {[%emt 0:01:05]} 11. a4 {[%emt 0:02:32]} a6 {[%emt 0:02:38]} 12. Ba3 {[%emt 0:03:48]} Ng6 {[%emt 0:06:28]} 13. Bxg6 {[%emt 0:06:49]} (13. a5 $1 $14 Ba7 14. Bxg6 hxg6 15. Nbd2) 13... hxg6 {[%emt 0:00:16]} 14. b5 {[%emt 0:08:16]} Na5 {[%emt 0:03:38]} 15. Bd6 {[%emt 0:06:47]} Qc8 {[%emt 0:07:56]} 16. Nbd2 {[%emt 0:08:36]} Nc4 {[%emt 0:11:22]} (16... Qxc3 $11 {is more appropriate.} 17. Rc1 Qd3) 17. Nxc4 {[%emt 0:01:58]} Qxc4 {[%emt 0:00:09]} 18. a5 {[%emt 0:01:21]} Bc5 {[%emt 0:08:06]} 19. Bxc5 {[%emt 0:11:19]} Qxc5 {[%emt 0:00:14]} 20. b6 {[%emt 0:01:15]} Rc8 {[%emt 0:09:23]} 21. Re3 {[%emt 0:00:26]} Qe7 {[%emt 0:03:15]} 22. Nd4 {[%emt 0:05:27]} Rc4 {[%emt 0:07:03]} 23. h3 {[%emt 0:07:13]} Qc5 {[%emt 0:07:41]} 24. Nb3 {[%emt 0:01:59]} Qe7 {[%emt 0:00:42]} 25. Nd4 {[%emt 0:00:16]} Rh4 {[%emt 0:02:32]} (25... O-O $15 {feels stronger.}) 26. Kh2 {[%emt 0:04:17]} Rh5 {[%emt 0:03:44]} 27. Kg1 {[%emt 0:02:11]} Qc5 {[%emt 0:01:04]} 28. Nb3 {[%emt 0:00:50]} Qc8 {[%emt 0:00:27]} 29. Qe1 {[%emt 0:00:29]} Ba4 {[%emt 0:00:59]} 30. Nd2 $18 {[%emt 0:01:08]} Rch4 {[%emt 0:00:06]} 31. g4 {[%emt 0:02:11]} d4 {[%emt 0:07:02]} 32. cxd4 {[%emt 0:03:36]} Rxh3 {[%emt 0:00:27]} 33. gxh5 {[%emt 0:00:55]} Rxh5 {[%emt 0:04:09]} 34. Ne4 {[%emt 0:01:31]} Bc6 {[%emt 0:00:00]} 35. Rc1 {[%emt 0:00:30]} Qd8 {[%emt 0:00:00]} 36. Rxc6 {[%emt 0:02:21]} Qh4 {[%emt 0:00:00]} 37. Rc8+ {[%emt 0:00:38]} Kd7 {[%emt 0:00:00]} 38. Rc7+ {[%emt 0:00:04]} Kd8 {[%emt 0:00:00]} 39. Ng3 {[%emt 0:00:13]} 1-0

[Event "DFMMLV 2024"]
[Site "Braunfels"]
[Date "2024.06.01"]
[Round "4.28"]
[White "Kotyk, Valeriya"]
[Black "Fock, Amina"]
[Result "1/2-1/2"]
[ECO "D35"]
[WhiteElo "1874"]
[BlackElo "1932"]
[Annotator "NA RC"]
[PlyCount "61"]
[EventDate "2024.05.30"]
[EventType "team-tourn"]
[EventCountry "GER"]
[SourceTitle "playchess.com"]
[Source "ChessBase"]
[SourceQuality "1"]
[TimeControl "40/5400+30:1800+30"]

1. d4 {[%emt 0:00:07]} d5 {[%emt 0:00:05]} 2. c4 {[%emt 0:00:24]} e6 {[%emt 0:00:11]} 3. Nc3 {[%emt 0:00:15]} Nf6 {[%emt 0:00:07]} 4. Bg5 {[%emt 0:00:24]} Be7 {[%emt 0:00:48]} 5. cxd5 {[%emt 0:00:31]} exd5 {[%emt 0:00:07]} 6. e3 {[%emt 0:00:37]} O-O {[%emt 0:00:21]} 7. Qc2 {[%emt 0:00:26]} Re8 {[%emt 0:02:06]} 8. Bd3 {[%emt 0:01:37]} h6 {[%emt 0:00:59] 8...h6 is better than 8...Nbd7.} 9. Bh4 {[%emt 0:00:05] D35: Queen's Gambit Declined: Exchange Variation.} c5 {[%emt 0:02:53]} 10. Nge2 {[%emt 0:04:20]} Nc6 {[%emt 0:01:07]} 11. dxc5 {[%emt 0:06:57]} d4 {[%emt 0:01:33]} 12. exd4 {[%emt 0:06:55]} Nxd4 {[%emt 0:01:06]} 13. Qd1 {[%emt 0:05:30]} Nxe2 {[%emt 0:12:44]} 14. Bxe2 {[%emt 0:00:10]} Qa5 $146 {[%emt 0:01:25]} ({Predecessor:} 14... Qxd1+ 15. Rxd1 Bxc5 16. O-O Be6 17. Bb5 Red8 18. Ne4 Be7 19. Nxf6+ Bxf6 20. Bxf6 gxf6 {½-½ Sarana,A (2668)-Lubbe,N (2463) Titled Tuesday intern op 26th Jul Early blitz 2022 (5)}) 15. O-O {[%emt 0:01:12]} Bf5 {[%emt 0:05:41]} (15... Qxc5 $11 {keeps the balance.} 16. Bf3 Qb4 17. Bxf6 Bxf6) 16. Bb5 {[%emt 0:21:17]} Rec8 {[%emt 0:20:09]} 17. Qf3 {[%emt 0:16:08]} Be6 {[%emt 0:10:30]} 18. Bd3 {[%emt 0:16:03]} Qb4 {[%emt 0:05:01]} 19. Bg3 {[%emt 0:10:30]} Bg4 {[%emt 0:09:53]} 20. Qf4 {[%emt 0:00:25]} Qxf4 {[%emt 0:01:24]} 21. Bxf4 {[%emt 0:00:02]} Bxc5 {[%emt 0:01:40]} 22. Ne4 {[%emt 0:02:14]} Nd5 {[%emt 0:06:07]} 23. Bg3 $11 {[%emt 0:01:48]} Nb4 {[%emt 0:07:27]} 24. Nxc5 {[%emt 0:00:59]} Nxd3 {[%emt 0:00:25]} 25. Nxd3 {[%emt 0:01:01]} Be2 {[%emt 0:00:06]} 26. Rfc1 {[%emt 0:01:17]} Bxd3 {[%emt 0:00:15]} 27. f3 {[%emt 0:00:43]} Bf5 {[%emt 0:01:02]} 28. b4 {[%emt 0:00:30]} Be6 {[%emt 0:00:38]} 29. a3 {[%emt 0:00:07]} Rxc1+ {[%emt 0:00:47]} 30. Rxc1 {[%emt 0:00:03]} Rc8 {[%emt 0:00:06]} 31. Rxc8+ {[%emt 0:00:11]} 1/2-1/2